fUSD/lending_fUSD_20241121
["ID","MTS","AMOUNT","RATE_DAILY","PERIOD"]
[342933696,1732210293544,-1509.38,0.00041643,11]
[342933697,1732210293555,-1145.26,0.00041643,11]
[342933698,1732210293564,-1009.48,0.00041643,11]
[342933699,1732210293574,-922.38,0.00041643,11]
[342933700,1732210293584,-2056.9,0.00041643,11]
[342933701,1732210293594,-500.0,0.00041643,11]
[342933702,1732210293604,-2912.74,0.00041643,11]
[342933703,1732210293615,-500.0,0.00041643,11]
[342933704,1732210293631,-1433.4,0.00041643,11]
[342933705,1732210293641,-857.27,0.00041643,11]
[342933706,1732210293651,-660.01,0.00041643,11]
[342933707,1732210293661,-505.39,0.00041643,11]
[342933708,1732210293671,-652.74,0.00041643,11]
[342933709,1732210293680,-527.56,0.00041643,11]
[342933710,1732210293690,-1022.92,0.00041643,11]
[342933711,1732210293700,-584.37,0.00041643,11]
[342933712,1732210293713,-500.0,0.00041643,11]
[342933713,1732210293723,-515.32,0.00041643,11]
[342933714,1732210293733,-813.78,0.00041643,11]
[342933715,1732210293742,-574.64,0.00041643,11]
[342933716,1732210293752,-2108.57,0.00041643,11]
[342933717,1732210293762,-500.0,0.00041643,11]
[342933718,1732210293772,-558.72,0.00041643,11]
[342933719,1732210293786,-1664.84,0.00041643,11]
[342933720,1732210293796,-3779.45,0.00041643,11]
[342933721,1732210293806,-2329.59,0.00041643,11]
[342933722,1732210293816,-500.0,0.00041643,11]
[342933723,1732210293826,-3931.15,0.00041643,11]
[342933724,1732210293837,-500.0,0.00041643,11]
[342933725,1732210293847,-1196.21,0.00041643,11]
[342933726,1732210293856,-904.02,0.00041643,11]
[342933727,1732210293866,-721.67,0.00041643,11]
[342933728,1732210293876,-2024.69,0.00041643,11]
[342933729,1732210293887,-500.0,0.00041643,11]
[342933730,1732210293897,-171.36369064,0.00041643,11]
[342933731,1732210293907,-794.12,0.00041643,7]
[342933732,1732210293917,-4525.19,0.00041643,11]
[342933733,1732210293926,-500.0,0.00041643,11]
[342933734,1732210293936,-500.0,0.00041643,11]
[342933735,1732210293947,-897.8,0.00041643,11]
[342933736,1732210293960,-12306.64,0.00041643,11]
[342933737,1732210293970,-1287.17,0.00041643,11]
[342933738,1732210293979,-815.54,0.00041643,11]
[342933739,1732210293989,-898.87,0.00041643,11]
[342933740,1732210293998,-46.13084404,0.00041643,11]
[342933741,1732210294010,-453.86915596,0.00041643,11]
[342933742,1732210294020,-500.0,0.00041643,11]
[342933743,1732210294030,-639.05,0.00041643,11]
[342933744,1732210294040,-1660.99,0.00041643,11]
[342933745,1732210294050,-500.0,0.00041643,11]
[342933746,1732210294060,-660.46,0.00041643,11]
[342933747,1732210294070,-500.0,0.00041643,11]
[342933748,1732210294080,-643.11,0.00041643,11]
[342933749,1732210294090,-500.0,0.00041643,11]
[342933750,1732210294100,-515.73,0.00041643,11]
[342933751,1732210294110,-1804.93,0.00041643,11]
[342933752,1732210294120,-558.80272938,0.00041643,11]
[342933753,1732210294129,-856.28,0.00041643,11]
[342933754,1732210294139,-751.73,0.00041643,11]
[342933755,1732210294150,-696.62,0.00041643,11]
[342933756,1732210294160,-245.1978,0.00041688,30]
[342933757,1732210294170,-2110.0,0.00041691,30]
[342933758,1732210294180,-150.23,0.00041712,2]
[342933759,1732210294190,-433.33,0.00041764,30]
[342933760,1732210294201,-433.33,0.00041764,30]
[342933761,1732210294213,-433.33,0.00041764,30]
[342933762,1732210294223,-433.33,0.00041764,30]
[342933763,1732210294232,-433.33,0.00041764,30]
[342933764,1732210294242,-866.66,0.00041764,30]
[342933765,1732210294252,-763.76,0.00041765,30]
[342933766,1732210294262,-433.33,0.00041765,30]
[342933767,1732210294272,-195.01397373,0.00041781,30]
[342933768,1732210294281,-161.78,0.00041857,120]
[342933769,1732210294291,-3769.6810007,0.00041888,2]
[342933770,1732210294301,-920.3125645,0.00041888,2]
[342933771,1732210294311,-150.0,0.000419,2]
[342933772,1732210294321,-2700.0,0.000419,15]
[342933773,1732210294331,-800.0,0.000419,15]
[342933774,1732210294342,-151.0,0.00041917,14]
[342933775,1732210294352,-645.84522878,0.00041917,11]
[342933776,1732210294362,-500.0,0.00041917,11]
[342933777,1732210294372,-500.0,0.00041917,11]
[342933778,1732210294382,-500.0,0.00041917,11]
[342933779,1732210294392,-500.0,0.00041917,11]
[342933780,1732210294402,-500.0,0.00041917,11]
[342933781,1732210294412,-500.0,0.00041917,11]
[342933782,1732210294422,-584.75,0.00041917,11]
[342933783,1732210294431,-629.31,0.00041917,60]
[342933784,1732210294441,-500.0,0.00041917,11]
[342933785,1732210294450,-610.11,0.00041917,11]
[342933786,1732210294463,-500.0,0.00041917,11]
[342933787,1732210294473,-590.3,0.00041917,11]
[342933788,1732210294483,-693.08,0.00041917,11]
[342933789,1732210294493,-500.0,0.00041917,11]
[342933790,1732210294504,-730.17,0.00041917,11]
[342933791,1732210294514,-500.0,0.00041917,11]
[342933792,1732210294524,-500.0,0.00041917,11]
[342933793,1732210294533,-500.0,0.00041917,11]
[342933794,1732210294543,-521.99144663,0.00041917,11]
[342933795,1732210294552,-500.0,0.00041917,11]
[342933796,1732210294563,-428.75487294,0.00041917,11]
[342933797,1732210294574,-609.78,0.00041917,11]
[342933798,1732210294583,-300.0,0.00041917,11]
[342933799,1732210294593,-1000.0,0.00041917,11]
[342933800,1732210294603,-561.96,0.00041917,11]
[342933801,1732210294764,-534.23,0.00041917,11]
[342933802,1732210294775,-602.41,0.00041917,11]
[342933803,1732210294787,-597.09,0.00041917,11]
[342933804,1732210294796,-526.42,0.00041917,11]
[342933805,1732210294805,-500.0,0.00041917,11]
[342933806,1732210294815,-624.07,0.00041917,11]
[342933807,1732210294826,-500.0,0.00041917,11]
[342933808,1732210294840,-500.0,0.00041917,11]
[342933809,1732210294853,-500.0,0.00041917,11]
[342933810,1732210294864,-608.28,0.00041917,11]
[342933811,1732210294874,-500.0,0.00041917,11]
[342933812,1732210294883,-537.67,0.00041917,11]
[342933813,1732210294892,-502.0,0.00041917,11]
[342933814,1732210294902,-603.82,0.00041917,11]
[342933815,1732210294911,-500.0,0.00041917,11]
[342933816,1732210294920,-552.31,0.00041917,11]
[342933817,1732210294929,-728.81,0.00041917,11]
[342933818,1732210294939,-500.0,0.00041917,11]
[342933819,1732210294948,-703.69,0.00041917,11]
[342933820,1732210294957,-377.37587639,0.00041917,11]
[342933821,1732210294973,-158.07412361,0.00041917,11]
[342933822,1732210294982,-203.84837347,0.00041917,11]
[342933823,1732210294992,-759.87,0.00041917,11]
[342933824,1732210295001,-701.78,0.00041917,11]
[342933825,1732210295011,-605.95,0.00041917,11]
[342933826,1732210295020,-500.0,0.00041917,11]
[342933827,1732210295029,-593.24,0.00041917,11]
[342933828,1732210295039,-500.0,0.00041917,11]
[342933829,1732210295049,-413.51104914,0.00041917,11]
[342933830,1732210295059,-526.23,0.00041917,11]
[342933831,1732210295069,-500.0,0.00041917,11]
[342933832,1732210295078,-815.09,0.00041917,11]
[342933833,1732210295088,-500.0,0.00041917,11]
[342933834,1732210295098,-500.0,0.00041917,11]
[342933835,1732210295108,-545.99,0.00041917,11]
[342933836,1732210295117,-602.84,0.00041917,11]
[342933837,1732210295126,-500.0,0.00041917,11]
[342933838,1732210295135,-605.03,0.00041917,11]
[342933839,1732210295145,-500.0,0.00041917,11]
[342933840,1732210295154,-500.0,0.00041917,11]
[342933841,1732210295164,-500.0,0.00041917,11]
[342933842,1732210295173,-1246.63,0.00041917,11]
[342933843,1732210295182,-500.0,0.00041917,11]
[342933844,1732210295192,-176.67877751,0.00041917,11]
[342933845,1732210295202,-598.18,0.00041917,11]
[342933846,1732210295213,-500.0,0.00041917,11]
[342933847,1732210295223,-12.80817627,0.00041917,11]
[342933848,1732210295235,-1255.55182373,0.00041917,11]
[342933849,1732210295244,-800.15,0.00041917,11]
[342933850,1732210295253,-1024.7,0.00041917,11]
[342933851,1732210295263,-500.0,0.00041917,11]
[342933852,1732210295272,-151.0,0.00041917,14]
[342933853,1732210295282,-500.0,0.00041917,11]
[342933854,1732210295291,-708.2,0.00041917,11]
[342933855,1732210295300,-500.0,0.00041917,11]
[342933856,1732210295310,-887.84,0.00041917,11]
[342933857,1732210295319,-748.95,0.00041917,11]
[342933858,1732210295328,-625.3,0.00041917,11]
[342933859,1732210295338,-500.0,0.00041917,11]
[342933860,1732210295347,-562.06,0.00041917,11]
[342933861,1732210295356,-696.5,0.00041917,11]
[342933862,1732210295365,-500.0,0.00041917,11]
[342933863,1732210295375,-662.39,0.00041917,11]
[342933864,1732210295384,-500.0,0.00041917,11]
[342933865,1732210295394,-575.84,0.00041917,11]
[342933866,1732210295403,-517.28,0.00041917,11]
[342933867,1732210295412,-602.81,0.00041917,11]
[342933868,1732210295421,-500.0,0.00041917,11]
[342933869,1732210295430,-500.0,0.00041917,11]
[342933870,1732210295439,-500.0,0.00041917,11]
[342933871,1732210295449,-624.49,0.00041917,11]
[342933872,1732210295458,-500.0,0.00041917,11]
[342933873,1732210295469,-500.0,0.00041917,11]
[342933874,1732210295479,-1406.57,0.00041917,11]
[342933875,1732210295488,-1500.25,0.00041917,11]
[342933876,1732210295497,-292.39381934,0.00041917,11]
[342933877,1732210295506,-868.47,0.00041917,11]
[342933878,1732210295515,-756.78,0.00041917,11]
[342933879,1732210295523,-1264.04,0.00041917,11]
[342933880,1732210295532,-723.44,0.00041917,11]
[342933881,1732210295541,-1164.27,0.00041917,11]
[342933882,1732210295551,-500.0,0.00041917,11]
[342933883,1732210295560,-852.66,0.00041917,11]
[342933884,1732210295570,-1951.28,0.00041917,11]
[342933885,1732210295579,-2111.16,0.00041917,11]
[342933886,1732210295588,-1857.8,0.00041917,11]
[342933887,1732210295598,-9039.41,0.00041917,11]
[342933888,1732210295606,-500.0,0.00041917,11]
[342933889,1732210295615,-500.0,0.00041917,11]
[342933890,1732210295625,-556.13,0.00041917,11]
[342933891,1732210295634,-174.62976775,0.00041917,11]
[342933892,1732210295643,-500.0,0.00041917,11]
[342933893,1732210295652,-500.0,0.00041917,11]
[342933894,1732210295671,-2046.35,0.00041917,11]
[342933895,1732210295680,-500.0,0.00041917,11]
[342933896,1732210295689,-519.48,0.00041917,11]
[342933897,1732210295699,-500.0,0.00041917,11]
[342933898,1732210295708,-599.11,0.00041917,11]
[342933899,1732210295719,-500.0,0.00041917,11]
[342933900,1732210295728,-1240.59,0.00041917,11]
[342933901,1732210295737,-1225.35,0.00041917,11]
[342933902,1732210295746,-984.48,0.00041917,11]
[342933903,1732210295759,-453.59132705,0.00041917,11]
[342933904,1732210295768,-779.37,0.00041917,11]
[342933905,1732210295780,-500.0,0.00041917,11]
[342933906,1732210295789,-985.32,0.00041917,11]
[342933907,1732210295799,-725.66,0.00041917,11]
[342933908,1732210295808,-1197.37,0.00041917,11]
[342933909,1732210295817,-500.0,0.00041917,11]
[342933910,1732210295827,-3093.19,0.00041917,11]
[342933911,1732210295839,-500.0,0.00041917,11]
[342933912,1732210295848,-500.0,0.00041917,11]
[342933913,1732210295858,-1700.89,0.00041917,11]
[342933914,1732210295868,-790.01,0.00041917,11]
[342933915,1732210295877,-1350.29,0.00041917,11]
[342933916,1732210295887,-1047.03,0.00041917,11]
[342933917,1732210295896,-500.0,0.00041917,11]
[342933918,1732210295908,-1055.86,0.00041917,11]
[342933919,1732210295918,-760.51,0.00041917,11]
[342933920,1732210295927,-1221.84,0.00041917,11]
[342933921,1732210295937,-1244.04,0.00041917,11]
[342933922,1732210295947,-1054.97,0.00041917,11]
[342933923,1732210295957,-1282.37,0.00041917,11]
[342933924,1732210295969,-500.0,0.00041917,11]
[342933925,1732210295978,-3596.65,0.00041917,11]
[342933926,1732210295987,-500.0,0.00041917,11]
[342933927,1732210295997,-500.0,0.00041917,11]
[342933928,1732210296006,-500.0,0.00041917,11]
[342933929,1732210296016,-94.21748213,0.00041917,11]
[342933930,1732210296029,-333.65,0.00041917,11]
[342933939,1732211195111,-500.0,0.00024932,2]
[342933940,1732211195136,-184.54,0.00026986,120]
[342933941,1732211195156,-18.15581768,0.000274,2]
[342933943,1732211226132,-131.84418232,0.000274,2]
[342933944,1732211226153,-314.6991,0.000309,2]
[342933945,1732211226174,-250.0,0.00031,2]
[342933946,1732211226195,-453.0,0.00031,2]
[342933947,1732211226216,-150.0,0.00032986,2]
[342933948,1732211226238,-300.0,0.00033,2]
[342933949,1732211226259,-217.18840158,0.0003341,2]
[342933950,1732211226281,-2032.72397948,0.0003341,2]
[342933951,1732211226303,-1003.19,0.0003351,2]
[342933952,1732211226327,-1273.9166457,0.000342,2]
[342933953,1732211235169,-758.80733377,0.000342,2]
[342933954,1732211235191,-569.34396051,0.00034375,2]
[342933955,1732211249124,-4559.05,0.00034548,2]
[342933956,1732211249149,-150.0,0.00034548,10]
[342933957,1732211249172,-687.46259338,0.000349,30]
[342933958,1732211252272,-1251.42420662,0.000349,30]
[342933959,1732211252294,-105.14631474,0.00034912,3]
[342933980,1732211432255,-836.47453645,0.00034264,2]
[342933981,1732211432340,-147.57236607,0.00034264,2]
[342933982,1732211432351,-1162.00243348,0.00034264,2]
[342933983,1732211432361,-2553.73158557,0.00034437,2]
[342933984,1732211432377,-1106.02,0.00034437,2]
[342933985,1732211432388,-118.46304925,0.00034437,2]
[342933986,1732211432398,-350.0,0.00035,2]
[342933987,1732211432408,-400.0,0.00035427,2]
[342933988,1732211432417,-280.0,0.00035427,30]
[342933989,1732211432428,-2190.30755701,0.00035428,63]
[342933990,1732211432440,-2019.15084,0.00035428,63]
[342933991,1732211432484,-12202.54160299,0.00035428,63]
[342933992,1732211432494,-2492.28,0.00035445,2]
[342933993,1732211432504,-489.24,0.00035458,2]
[342933994,1732211432513,-150.21,0.00035486,2]
[342933995,1732211432522,-500.0,0.00035487,2]
[342933996,1732211432532,-632.22,0.00035497,2]
[342933997,1732211432542,-1000.0,0.00035506,2]
[342933998,1732211432551,-2000.0,0.00035547,2]
[342933999,1732211432561,-500.0,0.00035549,2]
[342934000,1732211432571,-2377.0,0.00035593,2]
[342934001,1732211432580,-680.8,0.00035616,120]
[342934002,1732211432590,-44993.65,0.00035618,2]
[342934003,1732211432600,-165.25,0.00035632,2]
[342934004,1732211432609,-520.85,0.00035632,2]
[342934005,1732211432618,-250.0,0.00035641,2]
[342934006,1732211432628,-4045.63,0.00035669,2]
[342934007,1732211432637,-448.19,0.00035673,2]
[342934008,1732211432646,-206.72,0.00035687,10]
[342934009,1732211432656,-172.26,0.00035687,10]
[342934010,1732211432665,-8523.1583969,0.00035697,2]
[342934011,1732211432678,-6577.05458165,0.00035697,2]
[342934012,1732211432690,-850.98796959,0.00035697,2]
[342934013,1732211432702,-7948.79905186,0.00035697,2]
[342934014,1732211432711,-241.26,0.00035701,2]
[342934015,1732211432720,-3924.9,0.0003573,2]
[342934017,1732211432730,-1003.19,0.00035774,2]
[342934018,1732211432739,-941.12939343,0.00035817,2]
[342934019,1732211432773,-1874.04438824,0.00035817,2]
[342934020,1732211432788,-6212.69621833,0.00035817,2]
[342934021,1732211432797,-164.81,0.00035891,120]
[342934022,1732211432807,-500.0,0.00036,30]
[342934023,1732211432817,-25623.59,0.00036027,2]
[342934024,1732211432827,-1000.0,0.00036061,2]
[342934025,1732211432837,-250.0,0.00036066,120]
[342934026,1732211432847,-250.0,0.00036066,2]
[342934027,1732211432856,-200.0,0.00036073,2]
[342934028,1732211432866,-230.44,0.00036111,2]
[342934029,1732211432875,-156.59,0.00036194,2]
[342934030,1732211432884,-167.1,0.00036251,2]
[342934031,1732211432894,-180.87,0.00036376,2]
[342934032,1732211432903,-180.263,0.0003639,45]
[342934033,1732211432912,-1806.634,0.0003639,45]
[342934034,1732211432922,-2743.56,0.00036394,2]
[342934035,1732211432931,-202.43,0.00036448,120]
[342934036,1732211432941,-319.2,0.00036459,120]
[342934037,1732211432950,-184.59,0.00036459,2]
[342934038,1732211432959,-1378.69429149,0.00036548,120]
[342934039,1732211432969,-458.77302144,0.00036548,120]
[342934040,1732211432979,-750.97140366,0.00036548,2]
[342934041,1732211432988,-383.27,0.00036549,2]
[342934042,1732211432998,-2267.89383236,0.0003662,15]
[342934043,1732211433010,-150.36,0.00036716,2]
[342934044,1732211433020,-400.0,0.00037,2]
[342934045,1732211433030,-175.92,0.00037011,91]
[342934046,1732211433040,-150.21,0.00037124,2]
[342934047,1732211433050,-166.73,0.00037329,2]
[342934048,1732211433060,-5897.6478285,0.00037333,15]
[342934049,1732211433070,-1000.0,0.00037396,2]
[342934050,1732211433080,-290.37,0.00037433,2]
[342934051,1732211433090,-1494.77,0.00037442,2]
[342934052,1732211433100,-448.19,0.00037457,2]
[342934053,1732211433113,-2267.8938323,0.00037873,15]
[342934054,1732211433122,-150.0,0.00037984,2]
[342934055,1732211433132,-458.77302144,0.00038,120]
[342934056,1732211433141,-500.0,0.00038,30]
[342934057,1732211433153,-1003.19,0.00038038,2]
[342934058,1732211433162,-1000.0,0.00038156,2]
[342934059,1732211433172,-2500.0,0.00038156,2]
[342934060,1732211433181,-1000.0,0.00038256,2]
[342934061,1732211433191,-6394.33620529,0.00038256,2]
[342934062,1732211433203,-6767.96031445,0.00038256,2]
[342934067,1732211438480,-861.34,0.00035687,10]
[342934068,1732211438490,-215.77800947,0.00038256,2]
[342934069,1732211438754,-11556.39026516,0.00038256,2]
[342934070,1732211438768,-9042.87082876,0.00038256,2]
[342934071,1732211438779,-2996.65581046,0.00038256,2]
[342934072,1732211438794,-1093.54130424,0.00038256,2]
[342934073,1732211438805,-3336.03541101,0.00038256,2]
[342934074,1732211438817,-11220.44945116,0.00038256,2]
[342934075,1732211438826,-2500.0,0.00038256,2]
[342934076,1732211438835,-341.35560438,0.00038256,10]
[342934077,1732211438844,-500.0,0.00038356,11]
[342934078,1732211438852,-500.0,0.00038356,11]
[342934079,1732211438862,-544.43,0.00038356,11]
[342934080,1732211438871,-500.0,0.00038356,11]
[342934081,1732211438879,-500.0,0.00038356,11]
[342934082,1732211438889,-500.0,0.00038356,11]
[342934083,1732211438898,-500.0,0.00038356,11]
[342934084,1732211438908,-500.0,0.00038356,11]
[342934085,1732211438917,-199.10446854,0.00038356,11]
[342934086,1732211438927,-500.0,0.00038356,11]
[342934087,1732211438936,-500.0,0.00038356,11]
[342934088,1732211438945,-486.03513014,0.00038356,11]
[342934089,1732211438954,-500.0,0.00038356,11]
[342934090,1732211438964,-500.0,0.00038356,11]
[342934091,1732211438973,-500.0,0.00038356,11]
[342934092,1732211438982,-500.0,0.00038356,11]
[342934093,1732211438992,-500.0,0.00038356,11]
[342934094,1732211439002,-500.0,0.00038356,11]
[342934095,1732211439014,-500.0,0.00038356,11]
[342934096,1732211439023,-500.0,0.00038356,11]
[342934097,1732211439032,-500.0,0.00038356,11]
[342934098,1732211439041,-500.0,0.00038356,11]
[342934099,1732211439051,-500.0,0.00038356,11]
[342934100,1732211439060,-500.0,0.00038356,11]
[342934102,1732211439069,-500.0,0.00038356,11]
[342934104,1732211439079,-500.0,0.00038356,11]
[342934106,1732211439088,-500.0,0.00038356,11]
[342934108,1732211439097,-500.0,0.00038356,11]
[342934110,1732211439107,-500.0,0.00038356,11]
[342934112,1732211439119,-500.0,0.00038356,11]
[342934114,1732211439129,-500.0,0.00038356,11]
[342934116,1732211439138,-500.0,0.00038356,11]
[342934118,1732211439149,-500.0,0.00038356,11]
[342934119,1732211439158,-500.0,0.00038356,11]
[342934120,1732211439167,-500.0,0.00038356,11]
[342934121,1732211439176,-431.35148088,0.00038356,11]
[342934122,1732211439187,-1000.0,0.00038356,11]
[342934124,1732211439196,-500.0,0.00038356,11]
[342934126,1732211439205,-500.0,0.00038356,11]
[342934128,1732211439215,-185.44682504,0.00038356,11]
[342934131,1732211439224,-500.0,0.00038356,11]
[342934134,1732211439233,-500.0,0.00038356,11]
[342934136,1732211439242,-500.0,0.00038356,11]
[342934139,1732211439251,-500.0,0.00038356,11]
[342934141,1732211439261,-500.0,0.00038356,11]
[342934143,1732211439269,-500.0,0.00038356,11]
[342934145,1732211439279,-285.8690118,0.00038356,11]
[342934148,1732211439363,-150.73005793,0.00038356,11]
[342934149,1732211439374,-63.40093027,0.00038356,11]
[342934150,1732211439383,-500.0,0.00038356,11]
[342934151,1732211439395,-407.26435455,0.00038356,11]
[342934152,1732211439407,-83.66564545,0.00038356,11]
[342934153,1732211439418,-500.0,0.00038356,11]
[342934154,1732211439427,-500.0,0.00038356,11]
[342934155,1732211439436,-500.0,0.00038356,11]
[342934156,1732211439446,-500.0,0.00038356,11]
[342934157,1732211439455,-500.0,0.00038356,11]
[342934158,1732211439465,-500.0,0.00038356,11]
[342934159,1732211439475,-500.0,0.00038356,11]
[342934160,1732211439484,-500.0,0.00038356,11]
[342934161,1732211439494,-500.0,0.00038356,11]
[342934162,1732211439504,-500.0,0.00038356,11]
[342934163,1732211439516,-500.0,0.00038356,11]
[342934164,1732211439526,-500.0,0.00038356,11]
[342934165,1732211439536,-500.0,0.00038356,11]
[342934166,1732211439545,-500.0,0.00038356,11]
[342934167,1732211439555,-500.0,0.00038356,11]
[342934168,1732211439566,-366.33435503,0.00038356,11]
[342934169,1732211439759,-133.66564497,0.00038356,11]
[342934170,1732211439769,-500.0,0.00038356,11]
[342934171,1732211439778,-47.0635003,0.00038356,11]
[342934172,1732211439794,-452.9364997,0.00038356,11]
[342934173,1732211439803,-500.0,0.00038356,11]
[342934174,1732211439813,-500.0,0.00038356,11]
[342934175,1732211439822,-500.0,0.00038356,11]
[342934176,1732211439832,-500.0,0.00038356,11]
[342934177,1732211439842,-500.0,0.00038356,11]
[342934178,1732211439851,-500.0,0.00038356,11]
[342934179,1732211439862,-500.0,0.00038356,11]
[342934180,1732211439872,-190.77335395,0.00038356,11]
[342934181,1732211439886,-500.0,0.00038356,11]
[342934182,1732211439895,-500.0,0.00038356,11]
[342934183,1732211439905,-500.0,0.00038356,11]
[342934184,1732211439915,-500.0,0.00038356,11]
[342934185,1732211439924,-500.0,0.00038356,11]
[342934186,1732211439934,-500.0,0.00038356,11]
[342934187,1732211439943,-500.0,0.00038356,11]
[342934188,1732211439953,-500.0,0.00038356,11]
[342934189,1732211439963,-500.0,0.00038356,11]
[342934190,1732211439974,-389.24231107,0.00038356,11]
[342934191,1732211439983,-500.0,0.00038356,11]
[342934192,1732211439992,-500.0,0.00038356,11]
[342934193,1732211440001,-500.0,0.00038356,11]
[342934194,1732211440012,-500.0,0.00038356,11]
[342934195,1732211440022,-500.0,0.00038356,11]
[342934197,1732211440032,-500.0,0.00038356,11]
[342934199,1732211440041,-500.0,0.00038356,11]
[342934200,1732211440050,-500.0,0.00038356,11]
[342934202,1732211440060,-191.81908599,0.00038356,11]
[342934203,1732211440070,-500.0,0.00038356,11]
[342934204,1732211440079,-500.0,0.00038356,11]
[342934206,1732211440089,-500.0,0.00038356,11]
[342934208,1732211440099,-500.0,0.00038356,11]
[342934210,1732211440111,-500.0,0.00038356,11]
[342934211,1732211440120,-500.0,0.00038356,11]
[342934212,1732211440130,-571.88,0.00038356,11]
[342934213,1732211440140,-500.0,0.00038356,11]
[342934214,1732211440150,-500.0,0.00038356,11]
[342934215,1732211440160,-624.05204681,0.00038356,11]
[342934216,1732211440170,-500.0,0.00038356,11]
[342934217,1732211440179,-500.0,0.00038356,11]
[342934218,1732211440190,-500.0,0.00038356,11]
[342934219,1732211440200,-500.0,0.00038356,11]
[342934220,1732211440209,-500.0,0.00038356,11]
[342934221,1732211440219,-500.0,0.00038356,11]
[342934222,1732211440229,-500.0,0.00038356,11]
[342934223,1732211440238,-500.0,0.00038356,11]
[342934224,1732211440248,-500.0,0.00038356,11]
[342934225,1732211440260,-500.0,0.00038356,11]
[342934226,1732211440270,-500.0,0.00038356,11]
[342934227,1732211440281,-500.0,0.00038356,11]
[342934228,1732211440290,-500.0,0.00038356,11]
[342934229,1732211440300,-500.0,0.00038356,11]
[342934230,1732211440310,-460.14824204,0.00038356,11]
[342934231,1732211440319,-500.0,0.00038356,11]
[342934232,1732211440329,-500.0,0.00038356,11]
[342934233,1732211440339,-500.0,0.00038356,11]
[342934234,1732211440349,-500.0,0.00038356,11]
[342934235,1732211440359,-500.0,0.00038356,11]
[342934236,1732211440369,-500.0,0.00038356,11]
[342934237,1732211440378,-500.0,0.00038356,11]
[342934238,1732211440389,-500.0,0.00038356,11]
[342934239,1732211440398,-500.0,0.00038356,11]
[342934240,1732211440408,-500.0,0.00038356,11]
[342934241,1732211440417,-500.0,0.00038356,11]
[342934242,1732211440427,-500.0,0.00038356,11]
[342934243,1732211440438,-500.0,0.00038356,11]
[342934244,1732211440448,-500.0,0.00038356,11]
[342934245,1732211440458,-500.0,0.00038356,11]
[342934246,1732211440468,-500.0,0.00038356,11]
[342934247,1732211440477,-500.0,0.00038356,11]
[342934248,1732211440486,-500.0,0.00038356,11]
[342934249,1732211440496,-500.0,0.00038356,11]
[342934250,1732211440506,-500.0,0.00038356,11]
[342934251,1732211440521,-500.0,0.00038356,11]
[342934252,1732211440531,-500.0,0.00038356,11]
[342934253,1732211440542,-500.0,0.00038356,11]
[342934254,1732211440552,-500.0,0.00038356,11]
[342934255,1732211440562,-500.0,0.00038356,11]
[342934256,1732211440572,-514.2,0.00038356,11]
[342934257,1732211440582,-500.0,0.00038356,11]
[342934258,1732211440592,-500.0,0.00038356,11]
[342934259,1732211440601,-500.0,0.00038356,11]